bitfinex/quotes_ETHUSD_20250925
["timestamp","ask_amount","ask_price","bid_price","bid_amount"]
[1758844202007,0.001,3877.3,3877.2,6.2027918]
[1758844202348,0.001,3877.3,3877.2,6.177]
[1758844202558,0.001,3877.3,3877.2,8.75618085]
[1758844203650,0.001,3877.3,3877.2,6.177]
[1758844204326,0.001,3877.3,3877.2,8.323]
[1758844204818,0.001,3877.3,3877.2,10.90218085]
[1758844205221,0.4605,3877.3,3877.2,8.322]
[1758844205743,0.4605,3877.3,3877.1,2.148]
[1758844206042,2.57919514,3877.2,3876.5,1.553]
[1758844206241,2.57931726,3877.0,3876.6,6.768]
[1758844206442,0.4595,3876.9,3876.8,0.1288]
[1758844206643,3.03888043,3876.9,3876.8,0.1288]
[1758844206953,3.03888043,3876.9,3875.1,0.02]
[1758844206954,1.02130882,3876.9,3875.4,0.002]
[1758844207136,2.57976757,3876.4,3876.3,0.1288]
[1758844207448,3.03926757,3876.4,3876.3,4.7488]
[1758844207649,3.03926757,3876.4,3876.3,0.1288]
[1758844207813,3.03926757,3876.4,3876.2,2.837]
[1758844207814,0.1288,3876.3,3876.2,2.837]
[1758844208155,3.48486778,3876.3,3876.2,2.837]
[1758844208469,2.58031221,3875.5,3875.4,0.002]
[1758844208966,3.0,3876.5,3875.4,0.002]
[1758844208967,0.4575,3876.6,3875.4,0.002]
[1758844209272,0.4575,3876.2,3875.6,1.553]
[1758844209416,2.5799138,3876.1,3875.6,1.553]
[1758844209612,0.4575,3876.1,3875.6,2.0573]
[1758844209813,2.57964878,3876.5,3875.8,1.553]
[1758844210113,0.002,3876.8,3875.4,0.002]
[1758844210114,2.58009134,3875.9,3875.4,0.002]
[1758844210318,0.4575,3875.8,3875.5,5.503]
[1758844210548,0.4575,3876.5,3875.6,0.02580245]
[1758844210913,3.03715692,3876.5,3875.6,0.02580245]
[1758844211226,2.57971673,3876.4,3875.6,0.02580245]
[1758844211430,0.4575,3876.5,3875.7,1.553]
[1758844211640,0.4575,3876.5,3875.9,1.553]
[1758844211846,0.002,3876.7,3876.0,4.618]
[1758844211847,0.4595,3876.4,3876.0,4.618]
[1758844212010,2.57991279,3876.1,3876.0,4.618]
[1758844212253,3.03941279,3876.1,3876.0,4.618]
[1758844212581,0.4595,3876.1,3876.0,4.618]
[1758844212759,3.03941991,3876.1,3876.0,4.618]
[1758844212950,1.02142238,3876.1,3875.5,1.553]
[1758844213289,0.4575,3876.1,3875.6,6.765]
[1758844213584,0.4575,3876.0,3875.6,6.765]
[1758844213879,0.4575,3876.0,3875.5,1.553]
[1758844213880,2.58011249,3875.8,3875.5,1.553]
[1758844214181,2.58011249,3875.8,3875.4,0.002]
[1758844214182,2.58024563,3875.6,3875.4,0.002]
[1758844214479,0.4575,3875.7,3875.5,2.353]
[1758844214683,0.4575,3875.6,3875.5,2.353]
[1758844215092,0.002,3876.0,3875.5,2.353]
[1758844215298,3.03754903,3875.9,3875.5,2.353]
[1758844215596,0.4575,3875.8,3875.5,2.353]
[1758844215995,3.03770795,3875.7,3875.5,2.353]
[1758844216147,2.58024563,3875.6,3875.5,2.353]
[1758844216352,0.4575,3875.6,3875.5,2.353]
[1758844216864,0.4575,3876.1,3875.5,2.353]
[1758844217183,2.58004694,3875.9,3875.5,2.353]
[1758844217399,0.4575,3875.8,3875.5,2.353]
[1758844217554,0.4575,3875.7,3875.5,2.353]
[1758844217756,0.4575,3875.6,3875.4,0.002]
[1758844217980,3.03775827,3875.6,3875.5,6.763]
[1758844218391,3.03775827,3875.6,3875.4,0.002]
[1758844218392,5.58031221,3875.5,3875.4,0.002]
[1758844218761,6.02121221,3875.5,3875.4,0.002]
[1758844219076,5.58057856,3875.1,3874.1,0.052]
[1758844219452,6.02147856,3875.1,3874.1,0.052]
[1758844220198,6.02147856,3875.1,3874.2,0.1288]
[1758844220584,3.4409,3875.1,3874.2,0.1288]
[1758844220807,0.34409,3875.1,3874.7,2.014]
[1758844220983,2.70925227,3875.3,3874.7,2.014]
[1758844221184,2.58057856,3875.1,3874.7,2.014]
[1758844221608,0.4389,3875.2,3874.7,2.014]
[1758844221887,0.1288,3875.3,3874.9,4.614]
[1758844222412,2.58057856,3875.1,3874.9,4.614]
[1758844223433,3.54846279,3875.1,3874.9,4.614]
[1758844223601,0.96788423,3875.1,3874.9,4.614]
[1758844223805,0.1288,3875.3,3874.6,1.6838]
[1758844224005,2.58057856,3875.1,3875.0,4.616]
[1758844224329,0.1288,3875.3,3875.0,4.616]
[1758844224697,2.58057856,3875.1,3875.0,4.615]
[1758844224897,3.01947856,3875.1,3875.0,4.615]
[1758844225231,3.15345339,3875.1,3875.0,0.002]
[1758844225436,3.59235339,3875.1,3875.0,0.002]
[1758844225990,3.59435339,3875.1,3875.0,0.002]
[1758844227422,6.59435339,3875.1,3875.0,0.002]
[1758844227616,7.38635339,3875.1,3875.0,0.002]
[1758844231447,6.59235339,3875.1,3875.0,0.002]
[1758844231646,6.15345339,3875.1,3875.0,0.002]
[1758844231864,6.59235339,3875.1,3875.0,0.002]
[1758844232471,6.59435339,3875.1,3875.0,0.002]
[1758844233324,6.59235339,3875.1,3875.0,0.002]
[1758844233949,6.15345339,3875.1,3875.0,0.002]
[1758844234448,6.59235339,3875.1,3875.0,0.002]
[1758844234649,6.15345339,3875.1,3875.0,0.002]
[1758844237134,6.15345339,3875.1,3875.0,0.2468]
[1758844237333,6.15345339,3875.1,3875.0,0.002]
[1758844239852,0.002,3875.9,3875.0,0.002]
[1758844239853,0.1288,3875.4,3875.0,0.2468]
[1758844240151,4.606,3875.9,3875.0,0.2468]
[1758844240152,2.58057856,3875.1,3875.0,0.002]
[1758844240539,3.01947856,3875.1,3875.0,0.002]
[1758844240745,3.57947095,3875.1,3875.0,0.002]
[1758844241754,11.97947095,3875.1,3875.0,0.002]
[1758844242552,11.98047095,3875.1,3875.0,0.002]
[1758844243477,2.58111142,3874.3,3874.2,0.002]
[1758844243653,2.83922256,3874.3,3874.2,0.002]
[1758844243853,3.27812256,3874.3,3874.2,0.002]
[1758844244461,2.83922256,3874.3,3874.2,0.002]
[1758844246281,3.27812256,3874.3,3874.2,0.002]
[1758844246647,6.27812256,3874.3,3874.2,0.002]
[1758844246892,10.88312256,3874.3,3874.2,0.002]
[1758844247051,11.67512256,3874.3,3874.2,0.002]
[1758844247250,2.58177781,3873.3,3873.2,2.15]
[1758844247476,2.71052295,3873.4,3873.2,2.3948]
[1758844247675,2.71052295,3873.4,3873.3,0.2448]
[1758844250469,0.1288,3873.4,3873.3,0.6761]
[1758844250668,0.25811114,3874.3,3873.3,0.6761]
[1758844250669,2.58165088,3873.5,3873.3,0.6761]
[1758844251008,2.58176311,3873.4,3873.1,1.7018]
[1758844251194,0.1288,3873.8,3873.1,1.7018]
[1758844251195,2.58162919,3873.6,3873.1,1.7018]
[1758844251388,2.58167978,3873.5,3873.2,0.6659]
[1758844251595,2.58171115,3873.4,3873.3,7.4169]
[1758844251792,2.58171115,3873.4,3873.1,0.3834]
[1758844251793,2.58184446,3873.2,3873.1,0.3834]
[1758844251968,2.58184446,3873.2,3873.1,0.2546]
[1758844253700,3.04144446,3873.2,3873.1,0.02]
[1758844254093,2.58184446,3873.2,3873.1,0.02]
[1758844256005,2.58184446,3873.2,3873.1,0.2546]
[1758844256203,3.14983312,3873.2,3873.1,0.02]
[1758844257002,2.58184446,3873.2,3873.1,0.2546]
[1758844257203,2.58184446,3873.2,3873.1,0.6859]
[1758844257412,2.58184446,3873.2,3873.1,0.2546]
[1758844258402,0.1288,3873.3,3873.1,0.2546]
[1758844258616,0.1288,3873.3,3873.2,0.2346]
[1758844258784,0.1288,3873.3,3873.2,0.6659]
[1758844258986,2.58171055,3873.5,3873.2,2.2189]
[1758844259287,2.58184446,3873.2,3873.1,0.02]
[1758844259503,0.1288,3873.4,3873.1,0.02]
[1758844259689,2.58182872,3873.3,3873.2,0.2346]
[1758844259879,0.1288,3873.4,3873.2,0.2346]
[1758844260080,0.1288,3873.4,3873.3,0.4313]
[1758844260280,0.1288,3873.4,3873.3,0.6659]
[1758844261583,2.58158019,3873.6,3873.3,2.2189]
[1758844261776,3.0,3874.2,3873.4,0.6659]
[1758844261777,2.5816445,3873.5,3873.4,0.6659]
[1758844261979,2.5816445,3873.5,3873.4,0.2346]
[1758844264400,2.58177781,3873.3,3873.2,1.553]
[1758844264604,2.58177781,3873.3,3873.2,1.8023]
[1758844264805,2.58151855,3873.7,3873.2,2.2483]
[1758844265016,2.58158698,3873.6,3873.3,2.2483]
[1758844265213,2.58156442,3873.7,3873.4,0.2493]
[1758844265398,2.58157786,3873.6,3873.5,4.594]
[1758844265597,2.58157786,3873.6,3873.5,4.8433]
[1758844266022,3.0,3874.2,3873.5,4.8433]
[1758844266234,2.58148256,3873.8,3873.5,4.8433]
[1758844266414,2.58119797,3874.2,3873.7,1.553]
[1758844266746,2.58124455,3874.2,3873.9,1.553]
[1758844267038,2.58126347,3874.1,3874.0,4.593]
[1758844267340,2.5813113,3874.0,3873.9,1.8023]
[1758844267623,2.5813113,3874.0,3873.9,6.3953]
[1758844268828,2.58111038,3874.4,3873.9,6.3953]
[1758844269014,2.5813113,3874.0,3873.9,6.3953]
[1758844269217,0.4748,3874.6,3873.9,6.3953]
[1758844269414,2.5813113,3874.0,3873.9,6.3953]
[1758844269616,0.4748,3874.6,3873.9,6.3953]
[1758844269827,0.4748,3874.7,3873.9,6.3953]
[1758844270032,2.5813113,3874.0,3873.9,6.3953]
[1758844270795,2.58125327,3874.1,3873.9,6.3953]
[1758844270999,2.5813113,3874.0,3873.9,6.3953]
[1758844271197,2.58119188,3874.2,3873.9,6.3953]
[1758844271404,0.4748,3874.7,3873.9,6.146]
[1758844271645,2.58124467,3874.1,3874.0,0.2493]
[1758844271797,2.5813113,3874.0,3873.9,6.146]
[1758844272000,2.58137793,3873.9,3873.1,0.02]
[1758844272314,2.58184446,3873.2,3873.1,0.02]
[1758844272539,2.58184446,3873.2,3873.1,4.61]
[1758844273427,2.58184446,3873.2,3873.1,0.02]
[1758844273631,3.5730013,3873.2,3873.1,0.02]
[1758844273832,3.8066013,3873.2,3873.1,0.02]
[1758844274032,3.5730013,3873.2,3873.1,0.02]
[1758844274259,3.8066013,3873.2,3873.1,0.02]
[1758844274555,6.8066013,3873.2,3873.1,1e-08]
[1758844276657,6.8066013,3873.2,3873.1,0.00200001]
[1758844277428,11.3946013,3873.2,3873.1,0.00200001]
[1758844278258,11.3936013,3873.2,3873.1,0.00200001]
[1758844279143,6.0982013,3873.2,3873.1,0.00200001]
[1758844279343,5.58184446,3873.2,3873.1,0.25130001]
[1758844280597,2.58178458,3873.3,3873.1,0.25130001]
[1758844280896,0.1288,3873.4,3873.1,0.68420001]
[1758844281100,0.1288,3873.4,3873.2,0.2493]
[1758844281405,2.58163488,3873.6,3873.2,0.6822]
[1758844281566,0.1288,3873.7,3873.3,0.6822]
[1758844281766,0.1288,3873.7,3873.4,0.6822]
[1758844281962,0.1288,3873.9,3873.5,0.2493]
[1758844282297,2.58151986,3873.7,3873.6,4.8343]
[1758844282812,2.58151986,3873.7,3873.6,0.2493]
[1758844283113,0.1288,3873.6,3873.1,4.58600001]
[1758844283297,0.1288,3873.6,3873.2,0.2493]
[1758844283494,0.1288,3873.6,3873.3,0.2493]
[1758844284005,0.001,3874.1,3873.4,0.70801711]
[1758844284210,2.58136684,3874.0,3873.5,0.6822]
[1758844284387,2.58225058,3874.1,3873.6,2.8322]
[1758844284563,0.001,3874.1,3873.7,5.2662]
[1758844284769,0.001,3874.1,3873.8,0.6822]
[1758844285204,0.001,3874.1,3873.9,0.2493]
[1758844285388,0.001,3874.1,3873.9,0.6822]
[1758844285575,0.001,3874.1,3874.0,0.2493]
[1758844285965,2.58224467,3874.1,3873.9,4.583]
[1758844286173,2.58224467,3874.1,3873.7,4.582]
[1758844286174,0.51733899,3874.1,3873.7,4.582]
[1758844286396,2.58151121,3873.7,3873.6,4.582]
[1758844286597,0.4493,3874.1,3873.1,0.25130001]
[1758844286774,0.6826,3874.1,3873.5,4.582]
[1758844286975,2.58157786,3873.6,3873.5,4.582]
[1758844287183,2.58157786,3873.6,3873.1,0.25130001]
[1758844287184,0.6826,3874.1,3873.1,0.25130001]
[1758844287384,0.32638396,3874.0,3873.2,4.582]
[1758844287591,0.4493,3874.1,3873.2,4.582]
[1758844287765,0.4493,3874.1,3873.3,0.2493]
[1758844288064,2.5813113,3874.0,3873.3,0.2493]
[1758844288269,2.58164758,3873.5,3873.3,0.2493]
[1758844288524,2.5813113,3874.0,3873.4,0.6822]
[1758844288679,2.58136742,3874.0,3873.5,0.2493]
[1758844288877,2.58157786,3873.6,3873.5,0.2493]
[1758844289069,2.58165347,3873.5,3873.2,4.8313]
[1758844289411,2.58136718,3874.0,3873.3,0.2493]
[1758844289619,0.001,3874.1,3873.3,0.2493]
[1758844289620,0.001,3874.1,3873.4,0.4329]
[1758844289975,0.001,3874.1,3873.5,0.2493]
[1758844290368,0.001,3874.1,3873.6,0.4329]
[1758844290605,2.58225126,3874.1,3873.7,4.58]
[1758844290808,0.001,3874.1,3873.8,0.6822]
[1758844290975,0.001,3874.1,3873.9,0.6822]
[1758844291512,0.001,3874.1,3874.0,0.2493]
[1758844291712,0.001,3874.1,3873.8,2.15]
[1758844292005,0.001,3874.1,3873.5,1.553]
[1758844292006,2.58224523,3874.1,3873.9,4.579]
[1758844292412,2.5813113,3874.0,3873.9,4.579]
[1758844292581,0.001,3874.1,3873.9,4.8283]
[1758844292787,0.001,3874.1,3874.0,0.2493]
[1758844293119,0.001,3874.1,3874.0,0.6822]
[1758844293992,0.001,3874.1,3874.0,0.70801311]
[1758844296085,0.001,3874.1,3874.0,0.811]
[1758844296388,0.001,3874.1,3874.0,2.364]
[1758844298984,0.001,3874.1,3874.0,4.97112441]
[1758844299181,0.001,3874.1,3874.0,4.9453113]
[1758844301080,0.001,3874.1,3874.0,2.364]
[1758844301622,0.001,3874.1,3874.0,4.9453113]
[1758844301805,0.4493,3874.1,3874.0,1.6818]
[1758844302004,0.001,3874.1,3874.0,6.2548]
[1758844302390,0.001,3874.1,3874.0,6.5041]
[1758844302609,0.001,3874.1,3874.0,9.5183113]
[1758844302809,0.001,3874.1,3874.0,6.937]
[1758844303531,0.001,3874.1,3874.0,9.5183113]
[1758844303901,0.001,3874.1,3874.0,6.937]
[1758844304300,0.001,3874.1,3874.0,9.5183113]
[1758844305042,0.001,3874.1,3874.0,9.5163113]
[1758844305333,0.001,3874.1,3874.0,11.6663113]
[1758844305912,0.001,3874.1,3874.0,15.4583113]
[1758844308055,0.001,3874.1,3873.4,13.76100519]
[1758844308056,0.001,3874.1,3872.5,0.002]
[1758844308243,2.58224448,3872.6,3870.3,0.002]
[1758844308541,5.58297817,3871.5,3870.3,0.002]
[1758844308715,5.58317834,3871.2,3870.3,0.002]
[1758844308916,9.22666182,3871.2,3870.3,0.002]
[1758844309121,9.01886405,3871.2,3870.3,0.002]
[1758844309318,10.40441279,3871.2,3870.3,0.002]
[1758844309910,9.22381178,3871.2,3870.3,0.002]
[1758844310124,8.32522708,3871.2,3870.3,0.002]
[1758844311046,7.41202708,3871.2,3870.3,0.002]
[1758844311256,6.02647834,3871.2,3870.3,0.002]
[1758844311449,6.02647834,3871.2,3870.3,1.062]
[1758844311955,6.02647834,3871.2,3871.1,0.022]
[1758844312173,6.93967834,3871.2,3871.1,0.022]
[1758844313073,6.37524507,3871.1,3870.7,0.002]
[1758844313437,6.93974507,3871.1,3870.7,0.002]
[1758844313638,8.15034487,3871.1,3870.7,0.002]
[1758844316533,14.87734487,3871.1,3870.7,0.002]
[1758844316732,8.15034487,3871.1,3870.7,0.002]
[1758844316958,14.87234487,3871.1,3870.7,0.002]
[1758844317668,7.58584487,3871.1,3870.7,0.002]
[1758844317874,11.36584487,3871.1,3870.7,0.002]
[1758844318047,11.80914487,3871.1,3870.7,0.002]
[1758844318367,11.93034487,3871.1,3870.7,0.002]
[1758844318870,12.03389603,3871.1,3870.7,0.002]
[1758844319070,3.37544528,3870.8,3870.7,1e-08]
[1758844319242,6.37544528,3870.8,3870.7,1e-08]
[1758844319442,6.93994528,3870.8,3870.7,1e-08]
[1758844319639,1.67680744,3871.0,3870.7,1e-08]
[1758844319852,2.58344528,3870.8,3870.7,0.23630001]
[1758844320148,2.58344528,3870.8,3870.7,1e-08]
[1758844320348,3.11300478,3870.8,3870.7,1e-08]
[1758844320661,2.58344528,3870.8,3870.7,1e-08]
[1758844320867,0.1288,3870.9,3870.7,1e-08]
[1758844321175,0.1288,3870.9,3870.7,0.68900001]
[1758844321352,2.58310184,3871.4,3870.7,0.68900001]
[1758844321353,2.58318179,3871.2,3870.8,0.689]
[1758844321543,0.1288,3871.4,3870.9,0.689]
[1758844321746,0.1288,3871.4,3871.0,0.689]
[1758844321957,2.58312033,3871.3,3871.1,0.2363]
[1758844322294,2.58311161,3871.3,3871.2,0.2363]
[1758844323176,0.1288,3871.4,3871.2,0.2363]
[1758844323379,0.1288,3871.4,3871.3,0.2363]
[1758844323695,2.71184489,3871.4,3871.3,0.2363]
[1758844324973,0.1288,3871.4,3871.3,0.2363]
[1758844325278,2.71184489,3871.4,3871.3,0.2363]
[1758844325781,0.1288,3871.4,3871.3,0.6751]
[1758844325979,0.77643871,3872.0,3871.3,0.6751]
[1758844326179,2.58267211,3872.0,3871.4,0.2394]
[1758844326382,2.71147211,3872.0,3871.4,0.6782]
[1758844326583,2.71147211,3872.0,3871.4,0.4388]
[1758844326882,0.1288,3872.0,3871.5,0.26522978]
[1758844327058,0.1288,3872.0,3871.6,0.4388]
[1758844327253,0.1288,3872.0,3871.7,0.6782]
[1758844327454,0.1288,3872.0,3871.4,2.58304468]
[1758844327455,2.58219254,3872.7,3871.8,0.70402778]
[1758844327671,0.1288,3872.4,3871.9,0.2394]
[1758844327849,2.58258699,3872.1,3871.9,0.2394]
[1758844328286,2.58271133,3871.9,3871.8,0.1288]
[1758844328852,2.58271133,3871.9,3871.5,0.2394]
[1758844329283,0.1288,3872.0,3871.5,0.2394]
[1758844329448,0.001,3871.9,3871.6,0.2394]
[1758844329780,2.58371225,3871.9,3871.6,0.2394]
[1758844330681,2.58371225,3871.9,3871.4,2.151]
[1758844331096,2.58371225,3871.9,3871.4,2.3904]
[1758844331862,0.001,3871.9,3871.5,0.2394]
[1758844332062,0.001,3871.9,3871.6,0.6782]
[1758844332268,0.001,3871.9,3871.7,0.1288]
[1758844332469,0.001,3871.9,3871.7,0.807]
[1758844332686,0.001,3871.9,3871.8,0.6782]
[1758844333271,0.001,3871.9,3871.8,0.2394]
[1758844333669,0.001,3871.9,3871.6,4.572]
[1758844334094,2.58371846,3871.9,3871.6,4.572]
[1758844334517,2.58280684,3871.8,3871.6,4.572]
[1758844334689,2.58371312,3871.9,3871.6,4.572]
[1758844335377,0.001,3871.9,3871.6,4.572]
[1758844336878,0.001,3871.9,3871.6,4.8114]
[1758844337896,2.58371857,3871.9,3871.6,4.8114]
[1758844338211,0.001,3871.9,3871.6,4.8114]
[1758844338785,0.001,3871.9,3871.7,0.2275]
[1758844338983,0.001,3871.9,3871.7,0.6578]
[1758844339216,0.001,3871.9,3871.8,0.2275]
[1758844340119,0.001,3871.9,3871.8,0.6578]
[1758844340714,0.001,3871.9,3871.8,0.2275]
[1758844340892,0.001,3871.9,3871.8,4.7975]
[1758844341729,0.001,3871.9,3871.8,4.57]
[1758844342498,0.001,3871.9,3871.8,4.7975]
[1758844343132,0.001,3871.9,3871.8,5.2278]
[1758844344197,0.001,3871.9,3871.8,4.7975]
[1758844347239,0.001,3871.9,3871.8,7.38027803]
[1758844347533,0.001,3871.9,3871.8,5.2278]
[1758844347748,0.001,3871.9,3871.8,0.6578]
[1758844347959,0.001,3871.9,3871.8,4.7965]
[1758844348346,0.001,3871.9,3871.8,4.569]
[1758844348733,2.58277803,3871.8,3870.8,0.4323]
[1758844349034,0.4486,3871.7,3871.3,0.1288]
[1758844349244,2.58298573,3871.5,3871.3,0.1288]
[1758844349643,0.4486,3871.5,3871.3,0.1288]
[1758844350459,0.4486,3871.4,3871.3,0.1288]
[1758844350629,2.58298223,3871.5,3871.3,0.1288]
[1758844351367,2.58304489,3871.4,3871.3,0.1288]
[1758844351555,2.58311393,3871.3,3871.1,0.819]
[1758844351749,3.03171393,3871.3,3871.1,0.819]
[1758844352257,0.4486,3871.2,3871.0,0.002]
[1758844352626,3.03184507,3871.1,3871.0,0.002]
[1758844352825,3.60546469,3871.1,3871.0,0.002]
[1758844353458,2.58319072,3871.2,3871.0,0.002]
[1758844353953,2.58324507,3871.1,3871.0,0.002]
[1758844354174,0.001,3871.9,3871.0,0.002]
[1758844354328,0.001,3871.9,3871.1,0.2275]
[1758844354329,2.58291863,3871.6,3871.1,0.2275]
[1758844354527,2.58291863,3871.6,3871.2,0.2275]
[1758844354921,2.58277803,3871.8,3871.2,0.2275]
[1758844355148,2.58371774,3871.9,3871.1,0.2275]
[1758844355348,2.58279238,3871.8,3871.1,0.2275]
[1758844355579,2.58287074,3871.7,3871.1,0.2275]
[1758844355749,2.58291683,3871.6,3871.1,0.2275]
[1758844355949,2.58291683,3871.6,3871.2,0.2275]
[1758844356163,2.58285403,3871.7,3871.2,0.2275]
[1758844356572,0.001,3871.9,3871.3,0.6578]
[1758844356751,0.001,3871.9,3871.4,1.552]
[1758844356954,2.58371931,3871.9,3871.4,1.552]
[1758844357185,0.001,3871.9,3871.5,0.2275]
[1758844357365,0.001,3871.9,3871.6,0.2275]
[1758844357765,0.001,3871.9,3871.7,0.2275]
[1758844357962,0.001,3871.9,3871.8,0.02582778]
[1758844358165,0.001,3871.9,3871.8,4.56507803]
[1758844358371,0.001,3872.3,3872.2,4.13451123]
[1758844358671,0.001,3872.3,3872.2,1.552]
[1758844358895,0.001,3872.3,3872.2,8.27]
[1758844359278,0.001,3872.3,3872.2,8.4975]
[1758844359886,0.001,3872.3,3872.2,11.51031123]
[1758844360088,0.001,3872.3,3872.2,8.9278]
[1758844360260,0.001,3872.3,3872.2,8.27]
[1758844360455,0.001,3872.3,3872.1,1.552]
[1758844360660,0.001,3872.3,3872.2,2.836]
[1758844361966,0.001,3872.3,3872.2,3.4938]
[1758844362288,0.001,3872.3,3872.2,3.51962511]
[1758844362706,0.001,3872.3,3872.2,6.23093634]
[1758844362907,0.001,3872.3,3872.2,7.75711123]
[1758844363109,0.001,3872.3,3872.2,4.7443]
[1758844363809,0.001,3872.3,3872.2,7.75711123]
[1758844364012,0.001,3872.3,3872.2,5.1746]
[1758844364402,0.001,3872.3,3872.2,4.7443]
[1758844364912,0.001,3872.3,3872.2,7.75711123]
[1758844366714,0.001,3872.3,3872.2,1.9083]
[1758844367113,0.001,3872.3,3872.2,8.6243]
[1758844367291,0.001,3872.3,3872.2,8.3968]
[1758844367707,0.001,3872.3,3872.2,6.8448]
[1758844369316,0.4488,3872.3,3872.2,6.716]
[1758844369518,3.03124454,3872.3,3872.2,6.716]
[1758844369715,3.61770094,3872.3,3872.2,6.716]
[1758844370027,3.73990094,3872.3,3872.2,6.716]
[1758844370316,3.16990094,3872.3,3872.2,6.716]
[1758844370515,2.58344454,3872.3,3872.2,4.565]
[1758844370829,3.03124454,3872.3,3872.2,4.565]
[1758844370996,3.03124454,3872.3,3871.7,2.151]
[1758844370997,0.571,3872.3,3871.7,2.151]
[1758844371317,2.58298138,3871.5,3871.1,2.151]
[1758844371519,3.03078138,3871.5,3871.2,4.564]
[1758844372128,2.58304926,3871.4,3871.2,4.564]
[1758844372323,0.4478,3871.5,3871.2,4.564]
[1758844372497,3.03088317,3871.4,3871.2,4.564]
[1758844372816,3.03091161,3871.3,3871.2,4.564]
[1758844372995,0.4478,3871.3,3871.2,4.564]
[1758844373734,0.30307253,3871.5,3871.2,4.564]
[1758844373735,2.88605513,3871.5,3871.2,4.564]
[1758844374220,2.5829826,3871.5,3871.2,4.564]
[1758844375224,2.58291603,3871.6,3871.2,4.564]
[1758844375419,2.58310448,3871.4,3871.2,4.564]
[1758844375922,3.03078284,3871.5,3871.2,4.564]
[1758844376323,0.4478,3871.5,3871.2,4.564]
[1758844376500,3.03079305,3871.5,3871.2,4.564]
[1758844376706,0.57,3871.9,3871.2,4.564]
[1758844377009,2.58310922,3871.4,3871.2,4.564]
[1758844377417,2.5828406,3871.8,3871.2,4.7977]
[1758844377616,2.88590466,3871.8,3871.2,4.7977]
[1758844377825,2.58303544,3871.5,3871.2,4.7977]
[1758844378031,2.58304648,3871.4,3871.2,4.7977]
[1758844378228,0.30306406,3871.8,3871.2,4.7977]
[1758844378402,2.58311161,3871.3,3871.2,4.564]
[1758844378939,2.58305484,3871.4,3871.2,4.564]
[1758844379927,2.58297817,3871.5,3871.2,4.564]
[1758844380214,0.1222,3872.0,3871.2,4.564]
[1758844380408,2.58300151,3871.5,3871.2,4.564]
[1758844380803,3.03080151,3871.5,3871.2,4.564]
[1758844381065,0.1288,3871.4,3871.2,4.564]
[1758844381205,0.793,3872.7,3871.6,2.58291145]
[1758844381206,3.03009835,3872.6,3871.6,2.58291145]
[1758844381417,3.03009835,3872.6,3871.9,2.58270856]
[1758844381418,0.1298,3872.3,3871.9,2.58270856]
[1758844381764,0.1298,3872.3,3872.0,4.562]
[1758844382248,0.001,3872.3,3872.1,0.2337]
[1758844382455,0.001,3872.3,3872.2,4.7957]
[1758844382816,0.001,3872.3,3872.2,6.9377]
[1758844383023,0.001,3872.3,3872.2,6.4765]
[1758844384133,0.001,3872.3,3872.2,9.52481123]
[1758844384336,0.001,3872.3,3872.2,6.9423]
[1758844384828,0.001,3872.3,3872.2,2.3803]
[1758844385042,0.001,3872.3,3872.2,8.6265]
[1758844385242,0.001,3872.3,3871.7,2.58284257]
[1758844385243,0.001,3872.3,3871.7,0.2276]
[1758844385555,0.4623,3872.3,3872.1,2.151]
[1758844385754,2.58251123,3872.2,3872.1,2.151]
[1758844386049,3.04381123,3872.2,3872.1,6.712]
[1758844386252,3.16601123,3872.2,3872.1,6.712]
[1758844386547,2.58284474,3871.7,3871.5,6.723]
[1758844386760,2.58284474,3871.7,3871.6,4.563]
[1758844386915,3.04414474,3871.7,3871.6,4.563]
[1758844387649,3.04414474,3871.7,3871.6,0.002]
[1758844387650,3.71288759,3871.7,3871.6,0.002]
[1758844387847,3.63788759,3871.7,3871.6,0.002]
[1758844389251,2.58257523,3872.2,3871.6,0.002]
[1758844389252,2.58255284,3872.2,3871.6,0.002]
[1758844389457,2.58255284,3872.2,3871.6,0.2296]
[1758844389930,0.001,3872.3,3871.6,0.2296]
[1758844390435,2.58276241,3871.9,3871.6,0.2296]
[1758844390635,2.58276241,3871.9,3871.6,0.002]
[1758844391066,2.58279002,3871.8,3871.6,0.002]
[1758844391382,2.58277803,3871.8,3871.7,4.56]
[1758844391932,2.58284474,3871.7,3871.6,0.002]
[1758844392151,0.4613,3871.7,3871.6,0.002]
[1758844392350,0.4623,3872.3,3871.6,0.002]
[1758844392560,0.4623,3872.3,3871.7,4.559]
[1758844392741,2.58277803,3871.8,3871.7,4.559]
[1758844392961,3.04407803,3871.8,3871.7,4.559]
[1758844393538,2.58274893,3871.9,3871.7,4.559]
[1758844393768,2.58277803,3871.8,3871.7,4.559]
[1758844393967,3.04407803,3871.8,3871.7,4.559]
[1758844395047,3.04407803,3871.8,3871.6,0.002]
[1758844395048,2.58284474,3871.7,3871.6,4.56]
[1758844395248,3.04414474,3871.7,3871.6,4.56]
[1758844395558,2.58251671,3872.2,3871.6,4.7876]
[1758844395559,2.58272579,3871.9,3871.6,4.7876]
[1758844395757,0.001,3872.3,3871.6,4.7876]
[1758844395958,2.58284474,3871.7,3871.6,4.56]
[1758844397639,3.57358204,3871.7,3871.6,4.56]
[1758844397840,3.69578204,3871.7,3871.6,0.002]